[Event "Live Chess"]
[Site "Chess.com"]
[Date "2023.05.21"]
[Round "-"]
[White "KeithArkell"]
[Black "tpm07"]
[Result "1-0"]
[WhiteElo "2561"]
[BlackElo "1914"]
[TimeControl "300"]
[EndTime "22:56:52 PDT"]
[Termination "KeithArkell won by resignation"]

1. d4 {[%clk 0:04:49.9]} 1... Nf6 {[%clk 0:04:57.9]} 2. Nf3 {[%clk 0:04:49.1]}
2... e6 {[%clk 0:04:55.7]} 3. c4 {[%clk 0:04:48.3]} 3... d5 {[%clk 0:04:52.9]}
4. cxd5 {[%clk 0:04:47]} 4... exd5 {[%clk 0:04:49.9]} 5. Nc3 {[%clk 0:04:46.2]}
5... Bb4 {[%clk 0:04:46.1]} 6. Bg5 {[%clk 0:04:46]} 6... Nbd7 {[%clk 0:04:37]}
7. e3 {[%clk 0:04:43.5]} 7... c6 {[%clk 0:04:32.6]} 8. Bd3 {[%clk 0:04:41]} 8...
h6 {[%clk 0:04:25.7]} 9. Bxf6 {[%clk 0:04:39.2]} 9... Nxf6 {[%clk 0:04:22.5]}
10. Ne5 {[%clk 0:04:35.5]} 10... O-O {[%clk 0:04:20.1]} 11. O-O {[%clk
0:04:33.9]} 11... Bxc3 {[%clk 0:04:14]} 12. bxc3 {[%clk 0:04:32.5]} 12... Ne4
{[%clk 0:04:13.6]} 13. c4 {[%clk 0:04:30]} 13... Be6 {[%clk 0:03:59.4]} 14. cxd5
{[%clk 0:04:28.1]} 14... cxd5 {[%clk 0:03:56.2]} 15. Rc1 {[%clk 0:04:01.9]}
15... Qa5 {[%clk 0:03:46.8]} 16. Qe2 {[%clk 0:03:41.7]} 16... Rac8 {[%clk
0:03:28]} 17. Qb2 {[%clk 0:03:37.3]} 17... b6 {[%clk 0:03:16.7]} 18. Nc6 {[%clk
0:03:36.2]} 18... Qd2 {[%clk 0:03:11.3]} 19. Qxd2 {[%clk 0:03:32.1]} 19... Nxd2
{[%clk 0:03:09.8]} 20. Ne7+ {[%clk 0:03:31.1]} 20... Kh8 {[%clk 0:03:07.8]} 21.
Nxc8 {[%clk 0:03:30.1]} 21... Nxf1 {[%clk 0:03:07]} 22. Nxa7 {[%clk 0:03:25.2]}
22... Nxe3 {[%clk 0:02:49.6]} 23. fxe3 {[%clk 0:03:22.4]} 23... Ra8 {[%clk
0:02:38.6]} 24. Rc7 {[%clk 0:03:20.7]} 1-0

[Event "Live Chess"]
[Site "Chess.com"]
[Date "2023.05.21"]
[Round "-"]
[White "Supertromp"]
[Black "MaximKris"]
[Result "0-1"]
[WhiteElo "2151"]
[BlackElo "1857"]
[TimeControl "300"]
[EndTime "22:56:58 PDT"]
[Termination "MaximKris won by resignation"]

1. e4 {[%clk 0:04:58.7]} 1... e5 {[%clk 0:04:58.6]} 2. Nf3 {[%clk 0:04:57.7]}
2... Nc6 {[%clk 0:04:56.6]} 3. Bc4 {[%clk 0:04:57.2]} 3... Bc5 {[%clk 0:04:55]}
4. c3 {[%clk 0:04:56.1]} 4... Nf6 {[%clk 0:04:53.2]} 5. d4 {[%clk 0:04:55.4]}
5... exd4 {[%clk 0:04:53.1]} 6. b4 {[%clk 0:04:54.5]} 6... Bb6 {[%clk
0:04:50.5]} 7. e5 {[%clk 0:04:53.6]} 7... d5 {[%clk 0:04:49.4]} 8. exf6 {[%clk
0:04:52.8]} 8... dxc4 {[%clk 0:04:48.8]} 9. Qe2+ {[%clk 0:04:52.3]} 9... Be6
{[%clk 0:04:47]} 10. b5 {[%clk 0:04:51.8]} 10... Na5 {[%clk 0:04:44.3]} 11. fxg7
{[%clk 0:04:46.1]} 11... Rg8 {[%clk 0:04:42.8]} 12. cxd4 {[%clk 0:04:45.7]}
12... Bxd4 {[%clk 0:04:41.1]} 13. Nxd4 {[%clk 0:04:45.3]} 13... Qxd4 {[%clk
0:04:40.4]} 14. Bb2 {[%clk 0:04:44.8]} 14... Qc5 {[%clk 0:04:35.1]} 15. Bf6
{[%clk 0:04:32.5]} 15... Qf5 {[%clk 0:04:12.4]} 16. Qb2 {[%clk 0:04:25.3]} 16...
Qe4+ {[%clk 0:04:06.1]} 17. Qe2 {[%clk 0:04:20.5]} 17... Qxg2 {[%clk 0:04:03.8]}
18. Rf1 {[%clk 0:04:12.7]} 18... Rxg7 {[%clk 0:03:46.9]} 19. Bxg7 {[%clk
0:04:11.3]} 19... Qxg7 {[%clk 0:03:45.7]} 0-1

[Event "Live Chess"]
[Site "Chess.com"]
[Date "2023.05.21"]
[Round "-"]
[White "HonestJoe1"]
[Black "Shepherds_Pie"]
[Result "1-0"]
[WhiteElo "2098"]
[BlackElo "1904"]
[TimeControl "300"]
[EndTime "22:57:13 PDT"]
[Termination "HonestJoe1 won by resignation"]

1. d4 {[%clk 0:04:53.8]} 1... d5 {[%clk 0:04:58.1]} 2. Nf3 {[%clk 0:04:52.5]}
2... e5 {[%clk 0:04:57.9]} 3. Nxe5 {[%clk 0:04:47.3]} 3... Nf6 {[%clk
0:04:50.5]} 4. Bg5 {[%clk 0:04:43.3]} 4... Bd6 {[%clk 0:04:49]} 5. e3 {[%clk
0:04:41.4]} 5... O-O {[%clk 0:04:47.9]} 6. Bd3 {[%clk 0:04:29.9]} 6... c5 {[%clk
0:04:46]} 7. c3 {[%clk 0:04:27.9]} 7... Nc6 {[%clk 0:04:44.8]} 8. Nxc6 {[%clk
0:04:23.9]} 8... bxc6 {[%clk 0:04:43.3]} 9. Nd2 {[%clk 0:04:22.1]} 9... Re8
{[%clk 0:04:41.9]} 10. O-O {[%clk 0:04:20]} 10... h6 {[%clk 0:04:40.3]} 11. Bh4
{[%clk 0:04:18.3]} 11... Be7 {[%clk 0:04:38.1]} 12. dxc5 {[%clk 0:03:58.4]}
12... Bxc5 {[%clk 0:04:35.6]} 13. Nb3 {[%clk 0:03:56.8]} 13... Be7 {[%clk
0:04:31.3]} 14. Nd4 {[%clk 0:03:54.8]} 14... c5 {[%clk 0:04:28.7]} 15. Nc6
{[%clk 0:03:51.9]} 15... Qc7 {[%clk 0:04:26.8]} 16. Nxe7+ {[%clk 0:03:49.7]}
16... Qxe7 {[%clk 0:04:25.1]} 17. Qf3 {[%clk 0:03:47.5]} 17... Qe5 {[%clk
0:04:22.7]} 18. Bxf6 {[%clk 0:03:40.8]} 18... gxf6 {[%clk 0:04:21.5]} 19. c4
{[%clk 0:03:29.6]} 19... Bb7 {[%clk 0:04:15.4]} 20. Qg3+ {[%clk 0:03:24.7]}
20... Qxg3 {[%clk 0:04:13.5]} 21. hxg3 {[%clk 0:03:22.8]} 21... d4 {[%clk
0:04:11.7]} 22. exd4 {[%clk 0:03:17.5]} 22... cxd4 {[%clk 0:04:10.7]} 23. Rfe1
{[%clk 0:03:16.5]} 23... Bc6 {[%clk 0:04:09.1]} 24. b4 {[%clk 0:03:05.6]} 24...
Re6 {[%clk 0:04:07.3]} 25. a4 {[%clk 0:03:00.5]} 25... Rae8 {[%clk 0:04:04.3]}
26. Rxe6 {[%clk 0:02:55.3]} 26... fxe6 {[%clk 0:04:02.8]} 27. b5 {[%clk
0:02:52.4]} 27... Bb7 {[%clk 0:03:59.4]} 28. a5 {[%clk 0:02:49.2]} 28... a6
{[%clk 0:03:57.3]} 29. Rb1 {[%clk 0:02:41.8]} 29... e5 {[%clk 0:03:53.7]} 30. f3
{[%clk 0:02:39.7]} 30... axb5 {[%clk 0:03:46.5]} 31. cxb5 {[%clk 0:02:38.2]}
31... Kf7 {[%clk 0:03:43.7]} 32. a6 {[%clk 0:02:33.9]} 32... Bd5 {[%clk
0:03:40.8]} 33. b6 {[%clk 0:02:31.5]} 33... f5 {[%clk 0:03:38.8]} 34. b7 {[%clk
0:02:26.5]} 34... e4 {[%clk 0:03:35.5]} 35. a7 {[%clk 0:01:48.8]} 35... Bxb7
{[%clk 0:03:32.5]} 36. Rxb7+ {[%clk 0:01:46.9]} 36... Kf6 {[%clk 0:03:31.2]} 37.
Bc4 {[%clk 0:01:34.1]} 37... d3 {[%clk 0:03:22.8]} 38. Rb8 {[%clk 0:01:27.4]}
38... d2 {[%clk 0:03:16.9]} 39. Be2 {[%clk 0:01:24.6]} 39... exf3 {[%clk
0:03:14.3]} 40. Bxf3 {[%clk 0:01:16.5]} 40... Re1+ {[%clk 0:03:11.3]} 41. Kh2
{[%clk 0:01:15.3]} 41... d1=Q {[%clk 0:03:08.6]} 42. Bxd1 {[%clk 0:01:13.9]} 1-0

[Event "Live Chess"]
[Site "Chess.com"]
[Date "2023.05.21"]
[Round "-"]
[White "Jo1ts"]
[Black "YrrriKharkiv"]
[Result "0-1"]
[WhiteElo "822"]
[BlackElo "2014"]
[TimeControl "300"]
[EndTime "22:57:26 PDT"]
[Termination "YrrriKharkiv won by resignation"]

1. d4 {[%clk 0:04:56.1]} 1... Nf6 {[%clk 0:04:58.5]} 2. Bf4 {[%clk 0:04:54.4]}
2... d6 {[%clk 0:04:51.5]} 3. e3 {[%clk 0:04:53.6]} 3... Nbd7 {[%clk 0:04:49.4]}
4. Nf3 {[%clk 0:04:48.6]} 4... c5 {[%clk 0:04:48.1]} 5. Nbd2 {[%clk 0:04:42]}
5... Qb6 {[%clk 0:04:41.8]} 6. b3 {[%clk 0:04:35.9]} 6... cxd4 {[%clk
0:04:35.9]} 7. exd4 {[%clk 0:04:30]} 7... d5 {[%clk 0:04:32.7]} 8. c4 {[%clk
0:04:23.6]} 8... e6 {[%clk 0:04:30]} 9. Bd3 {[%clk 0:04:15.8]} 9... Be7 {[%clk
0:04:20.1]} 10. Ne5 {[%clk 0:04:12.1]} 10... Nxe5 {[%clk 0:04:17.6]} 11. Bxe5
{[%clk 0:04:12]} 11... h5 {[%clk 0:04:02]} 12. O-O {[%clk 0:04:02.2]} 12... Bd7
{[%clk 0:03:59.8]} 13. cxd5 {[%clk 0:03:48.6]} 13... exd5 {[%clk 0:03:55]} 14.
Be2 {[%clk 0:03:37.8]} 14... h4 {[%clk 0:03:46.6]} 15. g3 {[%clk 0:03:32.9]}
15... hxg3 {[%clk 0:03:43]} 16. fxg3 {[%clk 0:03:31.3]} 16... Qe6 {[%clk
0:03:35.4]} 17. Re1 {[%clk 0:03:23.3]} 17... Qh3 {[%clk 0:03:30]} 18. g4 {[%clk
0:02:55.9]} 18... Nxg4 {[%clk 0:03:14.3]} 19. Bxg4 {[%clk 0:02:37.1]} 19... Bxg4
{[%clk 0:03:07.3]} 20. Bd6 {[%clk 0:02:26.7]} 20... Bxd1 {[%clk 0:02:56.2]} 21.
Rxe7+ {[%clk 0:02:21.7]} 21... Kd8 {[%clk 0:02:55.2]} 22. Rxd1 {[%clk
0:02:18.1]} 22... Qg4+ {[%clk 0:02:54.2]} 0-1

[Event "Live Chess"]
[Site "Chess.com"]
[Date "2023.05.21"]
[Round "-"]
[White "Long1968"]
[Black "LutherSullivan"]
[Result "0-1"]
[WhiteElo "1048"]
[BlackElo "2190"]
[TimeControl "300"]
[EndTime "22:57:52 PDT"]
[Termination "LutherSullivan won on time"]

1. e4 {[%clk 0:04:56.6]} 1... c5 {[%clk 0:04:50.5]} 2. c3 {[%clk 0:04:54.2]}
2... Nf6 {[%clk 0:04:47]} 3. e5 {[%clk 0:04:48.3]} 3... Nd5 {[%clk 0:04:45.9]}
4. d4 {[%clk 0:04:46.3]} 4... cxd4 {[%clk 0:04:44]} 5. cxd4 {[%clk 0:04:43.7]}
5... Nc6 {[%clk 0:04:43.2]} 6. Nf3 {[%clk 0:04:40.5]} 6... d6 {[%clk 0:04:41.8]}
7. exd6 {[%clk 0:04:37.9]} 7... Qxd6 {[%clk 0:04:39.4]} 8. Nc3 {[%clk 0:04:35]}
8... Bg4 {[%clk 0:04:36.3]} 9. Be2 {[%clk 0:04:20]} 9... e6 {[%clk 0:03:56.8]}
10. O-O {[%clk 0:03:45.6]} 10... Be7 {[%clk 0:03:54.1]} 11. h3 {[%clk
0:03:39.5]} 11... Bh5 {[%clk 0:03:51.8]} 12. Ne5 {[%clk 0:03:21.4]} 12... Bxe2
{[%clk 0:03:35.4]} 13. Nxe2 {[%clk 0:02:30.8]} 13... Nxe5 {[%clk 0:03:31.5]} 14.
dxe5 {[%clk 0:02:19.6]} 14... Qxe5 {[%clk 0:03:31]} 15. Qa4+ {[%clk 0:02:13.6]}
15... Kf8 {[%clk 0:03:29.1]} 16. Re1 {[%clk 0:01:35.3]} 16... Nb6 {[%clk
0:03:08]} 17. Qb3 {[%clk 0:01:10.3]} 17... Qd5 {[%clk 0:03:04.2]} 18. Be3 {[%clk
0:00:49.5]} 18... Qa5 {[%clk 0:02:40.1]} 19. Bxb6 {[%clk 0:00:20.7]} 19... axb6
{[%clk 0:02:35.5]} 20. Nd4 {[%clk 0:00:14.6]} 20... Bc5 {[%clk 0:01:46.7]} 0-1

[Event "Live Chess"]
[Site "Chess.com"]
[Date "2023.05.21"]
[Round "-"]
[White "Tushinskiy"]
[Black "OleksiyJr1"]
[Result "1-0"]
[WhiteElo "2195"]
[BlackElo "961"]
[TimeControl "300"]
[EndTime "22:59:20 PDT"]
[Termination "Tushinskiy won by checkmate"]

1. d4 {[%clk 0:04:57.4]} 1... f5 {[%clk 0:04:50.9]} 2. c3 {[%clk 0:04:57.3]}
2... e6 {[%clk 0:04:48.9]} 3. Nf3 {[%clk 0:04:57.2]} 3... Nf6 {[%clk 0:04:45.6]}
4. Bf4 {[%clk 0:04:57.1]} 4... d5 {[%clk 0:04:42.2]} 5. e3 {[%clk 0:04:56]} 5...
Nc6 {[%clk 0:04:42.1]} 6. Bg3 {[%clk 0:04:55.4]} 6... Bd6 {[%clk 0:04:38.7]} 7.
Bd3 {[%clk 0:04:55.3]} 7... O-O {[%clk 0:04:36.1]} 8. Nbd2 {[%clk 0:04:54]} 8...
b6 {[%clk 0:04:33.9]} 9. Qe2 {[%clk 0:04:53.2]} 9... Bb7 {[%clk 0:04:32.9]} 10.
O-O-O {[%clk 0:04:52.4]} 10... a5 {[%clk 0:04:25.9]} 11. Ne5 {[%clk 0:04:49.7]}
11... Ne4 {[%clk 0:04:00.4]} 12. Nxe4 {[%clk 0:04:46.1]} 12... fxe4 {[%clk
0:04:00.3]} 13. Bc2 {[%clk 0:04:45.1]} 13... Nxe5 {[%clk 0:03:52.4]} 14. dxe5
{[%clk 0:04:45]} 14... Be7 {[%clk 0:03:45.2]} 15. Bxe4 {[%clk 0:04:43.4]} 15...
Qe8 {[%clk 0:03:40]} 16. Bc2 {[%clk 0:04:41.2]} 16... Rd8 {[%clk 0:03:26.9]} 17.
Qg4 {[%clk 0:04:39.4]} 17... d4 {[%clk 0:03:11.7]} 18. exd4 {[%clk 0:04:35.4]}
18... Bxg2 {[%clk 0:03:09.9]} 19. Rhg1 {[%clk 0:04:30.8]} 19... Bd5 {[%clk
0:03:08.6]} 20. f4 {[%clk 0:04:24]} 20... Bxa2 {[%clk 0:03:03.8]} 21. Bh4 {[%clk
0:04:07.6]} 21... g6 {[%clk 0:03:00.5]} 22. Bxe7 {[%clk 0:04:03]} 22... Qxe7
{[%clk 0:02:59.4]} 23. h4 {[%clk 0:03:58.6]} 23... Qf7 {[%clk 0:02:58]} 24. Rdf1
{[%clk 0:03:56.8]} 24... Bc4 {[%clk 0:02:54.1]} 25. Rf2 {[%clk 0:03:55.3]} 25...
c5 {[%clk 0:02:31.8]} 26. h5 {[%clk 0:03:53]} 26... Kg7 {[%clk 0:02:27.3]} 27.
hxg6 {[%clk 0:03:51.6]} 27... Qxg6 {[%clk 0:02:24.9]} 28. Bxg6 {[%clk
0:03:50.6]} 28... hxg6 {[%clk 0:02:24.8]} 29. Qxg6+ {[%clk 0:03:49.8]} 29... Kh8
{[%clk 0:02:23.8]} 30. Rh2# {[%clk 0:03:49.7]} 1-0

[Event "Live Chess"]
[Site "Chess.com"]
[Date "2023.05.21"]
[Round "-"]
[White "SavagePawn7"]
[Black "Ferrarifan27"]
[Result "0-1"]
[WhiteElo "788"]
[BlackElo "2071"]
[TimeControl "300"]
[EndTime "22:59:30 PDT"]
[Termination "Ferrarifan27 won by resignation"]

1. e4 {[%clk 0:04:55.6]} 1... e5 {[%clk 0:04:58.2]} 2. d4 {[%clk 0:04:54.2]}
2... exd4 {[%clk 0:04:56.7]} 3. c3 {[%clk 0:04:49.1]} 3... dxc3 {[%clk
0:04:56.6]} 4. Bc4 {[%clk 0:04:46.9]} 4... Nc6 {[%clk 0:04:54.6]} 5. Nxc3 {[%clk
0:04:44.7]} 5... Bb4 {[%clk 0:04:52.7]} 6. Ne2 {[%clk 0:04:41.6]} 6... d6 {[%clk
0:04:49.5]} 7. Qb3 {[%clk 0:04:37.3]} 7... Qe7 {[%clk 0:04:46.2]} 8. O-O {[%clk
0:04:34.2]} 8... Nf6 {[%clk 0:04:44]} 9. Re1 {[%clk 0:04:29.1]} 9... O-O {[%clk
0:04:41.3]} 10. Bd2 {[%clk 0:04:09.3]} 10... Bc5 {[%clk 0:04:31]} 11. Nd5 {[%clk
0:04:01.9]} 11... Nxd5 {[%clk 0:04:27.2]} 12. exd5 {[%clk 0:03:56.4]} 12... Na5
{[%clk 0:04:25.9]} 13. Qa4 {[%clk 0:03:49.2]} 13... Nxc4 {[%clk 0:04:24.2]} 14.
Qxc4 {[%clk 0:03:47.8]} 14... Qf6 {[%clk 0:04:20]} 15. Be3 {[%clk 0:03:39.3]}
15... Bxe3 {[%clk 0:04:15.6]} 16. fxe3 {[%clk 0:03:37.9]} 16... Qe7 {[%clk
0:04:07.8]} 17. Nf4 {[%clk 0:03:23.5]} 17... Bf5 {[%clk 0:03:52.1]} 18. b3
{[%clk 0:03:17.5]} 18... Be4 {[%clk 0:03:44.5]} 19. Rad1 {[%clk 0:03:06.2]}
19... b6 {[%clk 0:03:38.5]} 20. Rd4 {[%clk 0:03:04.6]} 20... Bg6 {[%clk
0:03:34.9]} 21. Re4 {[%clk 0:03:02.3]} 21... Bxe4 {[%clk 0:03:29.1]} 0-1

[Event "Live Chess"]
[Site "Chess.com"]
[Date "2023.05.21"]
[Round "-"]
[White "nigelst"]
[Black "Singapourfeuj"]
[Result "0-1"]
[WhiteElo "1719"]
[BlackElo "2212"]
[TimeControl "300"]
[EndTime "22:59:39 PDT"]
[Termination "Singapourfeuj won by resignation"]

1. e4 {[%clk 0:04:57.9]} 1... c5 {[%clk 0:04:59.2]} 2. Nf3 {[%clk 0:04:56.2]}
2... d6 {[%clk 0:04:58.5]} 3. Bb5+ {[%clk 0:04:54.1]} 3... Bd7 {[%clk
0:04:56.9]} 4. Bxd7+ {[%clk 0:04:52.5]} 4... Qxd7 {[%clk 0:04:56.3]} 5. O-O
{[%clk 0:04:52]} 5... g6 {[%clk 0:04:55]} 6. c3 {[%clk 0:04:48.5]} 6... Bg7
{[%clk 0:04:53.9]} 7. d4 {[%clk 0:04:46.9]} 7... Nf6 {[%clk 0:04:50.3]} 8. Re1
{[%clk 0:04:35.8]} 8... cxd4 {[%clk 0:04:49.2]} 9. cxd4 {[%clk 0:04:33.7]} 9...
d5 {[%clk 0:04:48.5]} 10. e5 {[%clk 0:04:31.3]} 10... Ne4 {[%clk 0:04:46.7]} 11.
Nc3 {[%clk 0:04:27.6]} 11... Nxc3 {[%clk 0:04:44.7]} 12. bxc3 {[%clk 0:04:26.3]}
12... e6 {[%clk 0:04:41.8]} 13. a4 {[%clk 0:04:21]} 13... O-O {[%clk 0:04:40.6]}
14. Ba3 {[%clk 0:04:17.7]} 14... Rc8 {[%clk 0:04:39.5]} 15. Qd2 {[%clk
0:04:11.1]} 15... Nc6 {[%clk 0:04:38.4]} 16. Rab1 {[%clk 0:04:00.5]} 16... Na5
{[%clk 0:04:37.3]} 17. Bd6 {[%clk 0:03:43.5]} 17... Nc4 {[%clk 0:04:35.5]} 18.
Qc2 {[%clk 0:03:35.5]} 18... b6 {[%clk 0:04:33.9]} 19. Bb4 {[%clk 0:03:13.3]}
19... a5 {[%clk 0:04:32.2]} 20. Bd6 {[%clk 0:03:09.6]} 20... Nxd6 {[%clk
0:04:30.8]} 21. exd6 {[%clk 0:03:08.1]} 21... Qxd6 {[%clk 0:04:30.1]} 22. Qb3
{[%clk 0:02:59.9]} 22... Rab8 {[%clk 0:04:24.6]} 23. Rec1 {[%clk 0:02:55.8]}
23... Rc4 {[%clk 0:04:23.3]} 24. Qb5 {[%clk 0:02:35.8]} 24... Qc6 {[%clk
0:04:17.4]} 25. Qxc6 {[%clk 0:02:30.8]} 25... Rxc6 {[%clk 0:04:16.1]} 26. Rb3
{[%clk 0:02:29.1]} 26... Rc4 {[%clk 0:04:11.8]} 27. Rcb1 {[%clk 0:02:25.9]}
27... Rxa4 {[%clk 0:04:09.2]} 28. h3 {[%clk 0:02:24.1]} 28... Rc4 {[%clk
0:04:03.8]} 29. Rxb6 {[%clk 0:02:16.1]} 29... Rxb6 {[%clk 0:04:02.3]} 30. Rxb6
{[%clk 0:02:14.2]} 30... Rxc3 {[%clk 0:04:01.6]} 31. Rb8+ {[%clk 0:02:10]} 31...
Bf8 {[%clk 0:04:00.6]} 32. Ne5 {[%clk 0:02:08.1]} 32... Kg7 {[%clk 0:03:58.3]}
33. Nd7 {[%clk 0:01:55.8]} 33... Rc1+ {[%clk 0:03:56.2]} 34. Kh2 {[%clk
0:01:51.4]} 34... Bd6+ {[%clk 0:03:55.3]} 0-1

[Event "Live Chess"]
[Site "Chess.com"]
[Date "2023.05.21"]
[Round "-"]
[White "peter-785"]
[Black "profpirate4"]
[Result "0-1"]
[WhiteElo "1209"]
[BlackElo "1226"]
[TimeControl "300"]
[EndTime "22:59:55 PDT"]
[Termination "profpirate4 won by resignation"]

1. e4 {[%clk 0:04:57.7]} 1... c5 {[%clk 0:04:59.2]} 2. Nf3 {[%clk 0:04:56.8]}
2... d6 {[%clk 0:04:58.5]} 3. Bc4 {[%clk 0:04:56.2]} 3... Nf6 {[%clk 0:04:57.3]}
4. Nc3 {[%clk 0:04:54.1]} 4... e6 {[%clk 0:04:55.8]} 5. d4 {[%clk 0:04:53.5]}
5... cxd4 {[%clk 0:04:54.8]} 6. Nxd4 {[%clk 0:04:52.6]} 6... a6 {[%clk
0:04:52.8]} 7. O-O {[%clk 0:04:50.2]} 7... b5 {[%clk 0:04:51.9]} 8. Bb3 {[%clk
0:04:49.5]} 8... b4 {[%clk 0:04:51.2]} 9. Nce2 {[%clk 0:04:45.1]} 9... Nxe4
{[%clk 0:04:49.9]} 10. Re1 {[%clk 0:04:36.6]} 10... Nc5 {[%clk 0:04:48.4]} 11.
Bc4 {[%clk 0:04:29.6]} 11... Nbd7 {[%clk 0:04:44.5]} 12. Nc6 {[%clk 0:04:25.6]}
12... Qc7 {[%clk 0:04:36.9]} 13. Nxb4 {[%clk 0:04:22.8]} 13... d5 {[%clk
0:04:26.8]} 14. Bb3 {[%clk 0:04:13.7]} 14... Nxb3 {[%clk 0:04:23.8]} 15. axb3
{[%clk 0:04:12.8]} 15... Bxb4 {[%clk 0:04:22.5]} 16. c3 {[%clk 0:04:10]} 16...
Bd6 {[%clk 0:04:17.8]} 17. Qd4 {[%clk 0:04:06.1]} 17... Bxh2+ {[%clk 0:04:14.1]}
18. Kf1 {[%clk 0:04:02]} 18... Be5 {[%clk 0:04:11.8]} 19. Qg4 {[%clk 0:03:58.6]}
19... Bf6 {[%clk 0:03:52.3]} 20. Ng3 {[%clk 0:03:51.7]} 20... Ne5 {[%clk
0:03:49.8]} 21. Qf4 {[%clk 0:03:43.3]} 21... Ra7 {[%clk 0:03:33.4]} 22. Be3
{[%clk 0:03:22.9]} 22... Nd3 {[%clk 0:03:27.5]} 23. Qxc7 {[%clk 0:03:17.9]}
23... Rxc7 {[%clk 0:03:26.1]} 24. Reb1 {[%clk 0:03:08.8]} 24... O-O {[%clk
0:03:16]} 25. Ra4 {[%clk 0:03:04.4]} 25... e5 {[%clk 0:03:09.8]} 26. b4 {[%clk
0:02:54.4]} 26... e4 {[%clk 0:03:07.3]} 27. b3 {[%clk 0:02:33.9]} 27... Rxc3
{[%clk 0:03:01.7]} 28. Ra5 {[%clk 0:02:22.2]} 28... Nxb4 {[%clk 0:02:53.9]} 29.
Rc1 {[%clk 0:02:09]} 29... Rxc1+ {[%clk 0:02:44.2]} 30. Bxc1 {[%clk 0:02:06.7]}
30... Rd8 {[%clk 0:02:33.9]} 31. Be3 {[%clk 0:01:55.5]} 31... d4 {[%clk
0:02:29.5]} 32. Bd2 {[%clk 0:01:52.4]} 32... Nc6 {[%clk 0:02:11.2]} 33. Rc5
{[%clk 0:01:37.8]} 33... Bb7 {[%clk 0:02:02.8]} 34. Nxe4 {[%clk 0:01:26.6]}
34... Ne5 {[%clk 0:01:44.7]} 35. Ng3 {[%clk 0:01:16.7]} 35... Nd3 {[%clk
0:01:38]} 36. Rc7 {[%clk 0:01:10.6]} 36... Bd5 {[%clk 0:01:26.2]} 37. b4 {[%clk
0:01:06.9]} 37... Be5 {[%clk 0:01:03.9]} 38. Ne2 {[%clk 0:00:44.4]} 0-1

[Event "Live Chess"]
[Site "Chess.com"]
[Date "2023.05.21"]
[Round "-"]
[White "Duke_of_Bebington"]
[Black "Rusty_Bridges"]
[Result "0-1"]
[WhiteElo "1564"]
[BlackElo "1514"]
[TimeControl "300"]
[EndTime "23:00:31 PDT"]
[Termination "Rusty_Bridges won by resignation"]

1. e4 {[%clk 0:04:58.2]} 1... d6 {[%clk 0:04:57.7]} 2. d4 {[%clk 0:04:56.6]}
2... Nf6 {[%clk 0:04:53.2]} 3. Nc3 {[%clk 0:04:54]} 3... Nbd7 {[%clk 0:04:49.5]}
4. f4 {[%clk 0:04:52.5]} 4... e5 {[%clk 0:04:38.2]} 5. fxe5 {[%clk 0:04:43.1]}
5... dxe5 {[%clk 0:04:38.1]} 6. d5 {[%clk 0:04:38.9]} 6... Bb4 {[%clk
0:04:28.3]} 7. Bd3 {[%clk 0:04:35]} 7... Nc5 {[%clk 0:04:20.3]} 8. Ne2 {[%clk
0:04:28.8]} 8... Bg4 {[%clk 0:04:11.2]} 9. O-O {[%clk 0:04:17.6]} 9... Bxc3
{[%clk 0:03:59.4]} 10. bxc3 {[%clk 0:04:17.5]} 10... Ncxe4 {[%clk 0:03:54.5]}
11. h3 {[%clk 0:04:11]} 11... Bh5 {[%clk 0:03:45.9]} 12. c4 {[%clk 0:03:59.2]}
12... Ng3 {[%clk 0:03:22.4]} 13. Rf2 {[%clk 0:03:53]} 13... e4 {[%clk
0:03:18.2]} 14. Qf1 {[%clk 0:03:38.3]} 14... Nxf1 {[%clk 0:02:49.3]} 0-1

[Event "Live Chess"]
[Site "Chess.com"]
[Date "2023.05.21"]
[Round "-"]
[White "chessfiction"]
[Black "smoggyrabbit"]
[Result "1-0"]
[WhiteElo "2348"]
[BlackElo "1739"]
[TimeControl "300"]
[EndTime "23:00:42 PDT"]
[Termination "chessfiction won on time"]

1. e4 {[%clk 0:04:59]} 1... e6 {[%clk 0:04:59.1]} 2. d4 {[%clk 0:04:57.4]} 2...
d5 {[%clk 0:04:58.3]} 3. Nc3 {[%clk 0:04:51.9]} 3... Nf6 {[%clk 0:04:56.4]} 4.
e5 {[%clk 0:04:48.4]} 4... Nfd7 {[%clk 0:04:55.2]} 5. Nce2 {[%clk 0:04:48.3]}
5... c5 {[%clk 0:04:54.5]} 6. c3 {[%clk 0:04:46.4]} 6... Nc6 {[%clk 0:04:53.7]}
7. f4 {[%clk 0:04:45.5]} 7... Be7 {[%clk 0:04:51.5]} 8. Nf3 {[%clk 0:04:45.4]}
8... O-O {[%clk 0:04:48.6]} 9. h4 {[%clk 0:04:44.7]} 9... b6 {[%clk 0:04:46.7]}
10. h5 {[%clk 0:04:36.8]} 10... h6 {[%clk 0:04:43.9]} 11. g4 {[%clk 0:04:35.4]}
11... cxd4 {[%clk 0:04:37.2]} 12. cxd4 {[%clk 0:04:06.2]} 12... Ba6 {[%clk
0:04:36.1]} 13. g5 {[%clk 0:04:04]} 13... hxg5 {[%clk 0:04:03.1]} 14. Nxg5
{[%clk 0:03:49.6]} 14... Nb4 {[%clk 0:03:47.3]} 15. Nc3 {[%clk 0:03:27.1]} 15...
Bxf1 {[%clk 0:03:14.2]} 16. Kxf1 {[%clk 0:03:27]} 16... Bxg5 {[%clk 0:03:03.4]}
17. fxg5 {[%clk 0:03:25.4]} 17... f6 {[%clk 0:02:49.8]} 18. gxf6 {[%clk
0:03:23]} 18... Nxf6 {[%clk 0:02:29.9]} 19. Kg2 {[%clk 0:03:01.1]} 19... Ne4
{[%clk 0:01:59.4]} 20. Qg4 {[%clk 0:02:49.3]} 20... Rf2+ {[%clk 0:01:14.2]} 21.
Kg1 {[%clk 0:02:46.6]} 21... Qf8 {[%clk 0:01:06.8]} 22. Be3 {[%clk 0:02:40.6]}
22... Rf5 {[%clk 0:00:28.4]} 23. Nxe4 {[%clk 0:02:37.5]} 23... dxe4 {[%clk
0:00:26.4]} 24. h6 {[%clk 0:02:35.2]} 24... Rf7 {[%clk 0:00:16.8]} 25. Rh2
{[%clk 0:02:23.6]} 25... Nd3 {[%clk 0:00:15.5]} 26. Rg2 {[%clk 0:02:21.9]} 26...
Rc8 {[%clk 0:00:07.8]} 27. Qxe6 {[%clk 0:01:59.8]} 27... Re8 {[%clk 0:00:04.8]}
28. h7+ {[%clk 0:01:53.3]} 28... Kh8 {[%clk 0:00:03.5]} 29. Qg4 {[%clk
0:01:45.2]} 29... Rc8 {[%clk 0:00:01.8]} 30. Qxe4 {[%clk 0:01:40.3]} 30... Rc1+
{[%clk 0:00:00.4]} 31. Rxc1 {[%clk 0:01:37.4]} 1-0